Cogmind - Beta 16.1 @@@ ROGUE MODE // 2026.01.04 @ 02:04:34 Player: JuustuToug Result: Self-destructed Performance ------------- Evolutions (4) 2000 Regions Visited (6) 1200 Robots Destroyed (1) 5 Value Destroyed (17) 17 Prototype IDs (0) 0 Alien Tech Used (0) 0 Bonus (0) 0 TOTAL SCORE: 3222 Bonus ------- None Cogmind --------- Core Integrity 328/850 Matter 119/300 Energy 99/100 System Corruption 1% Temperature Cool (9) Movement Core (50) Location -6/Factory Parts ------- > --- POWER (1) -------- (None) > --- PROPULSION (6) --- (None) > --- UTILITY (4) ------ (None) > --- WEAPON (4) ------- (None) > --- INVENTORY (5) ---- Botcube Peak State ------------ > --- POWER ------------ (None) > --- PROPULSION ------- (None) > --- UTILITY ---------- (None) > --- WEAPON ----------- Pulse Rifle Minigun > --- INVENTORY -------- Botcube [Rating: 6] Favorites ----------- Power None Propulsion Light Treads Treads Light Treads Utility Improved Melee Analysis Suite Processor Improved Melee Analysis Suite Weapon Light Assault Rifle Energy Gun EM Pulse Gun Ballistic Gun Light Assault Rifle Build | -11 -10 -10 -10 -8 -7 -6 ------- Run | Yrd Mat Min Sub Mat Fac Fac Slots Evolved 8 | . . . . 4 2 2 Power . | . . . . . . . Propulsion 4 | . . . . 2 . 2 Utility 2 | . . . . 2 . . Weapon 2 | . . . . . 2 . Parts Attached 7 | 4 . . . 2 . 1 Power . | . . . . . . . Engine . | . . . . . . . Core . | . . . . . . . Reactor . | . . . . . . . Propulsion 2 | 2 . . . . . . Treads 2 | 2 . . . . . . Leg . | . . . . . . . Wheel . | . . . . . . . Hover . | . . . . . . . Flight . | . . . . . . . Utility 1 | . . . . . . 1 Device . | . . . . . . . Storage . | . . . . . . . Processor 1 | . . . . . . 1 Hackware . | . . . . . . . Protection . | . . . . . . . Artifact . | . . . . . . . Weapon 4 | 2 . . . 2 . . Energy Gun 2 | 1 . . . 1 . . Energy Cannon . | . . . . . . . Ballistic Gun 2 | 1 . . . 1 . . Ballistic Cannon . | . . . . . . . Launcher . | . . . . . . . Special Weapon . | . . . . . . . Impact Weapon . | . . . . . . . Slashing Weapon . | . . . . . . . Piercing Weapon . | . . . . . . . Special Melee Weapon . | . . . . . . . Unidentified Prototypes . | . . . . . . . Parts Lost 7 | . . . 3 2 . 2 Power . | . . . . . . . Propulsion 2 | . . . 2 . . . Utility 1 | . . . . . . 1 Weapon 4 | . . . 1 2 . 1 Highest Loss Streak 3 | . . . 3 1 . 1 To Critical Strikes . | . . . . . . . Average Backups . | . . . . . . . Power . | . . . . . . . Propulsion . | . . . . . . . Utility . | . . . . . . . Weapon . | . . . . . . . Tool/Special . | . . . . . . . Unused Backups . | . . . . . . . Power . | . . . . . . . Propulsion . | . . . . . . . Utility . | . . . . . . . Weapon . | . . . . . . . Tool/Special . | . . . . . . . Average Slot Usage (%) 32 | . 57 57 33 9 7 3 Treads 14 | . 28 28 14 . . . Energy Gun 7 | . 14 14 5 1 7 1 Ballistic Gun 9 | . 14 14 14 7 . . Peak Build Rating 6 | 4 4 4 4 6 3 4 Average Rating 2 | 3 4 4 2 2 3 1 On Entrance 2 | . 4 4 4 1 3 3 Avg Prop Armor Cover (%) . | . . . . . . . Naked Turns 71 | . . . . 16 . 55 Heaviest Build 6 | 3 3 3 3 6 3 3 Greatest Support 40 | 40 40 40 40 3 3 3 Greatest Overweight (x) 1 | . . . . 1 . . Average Overweight (x) . | . . . . . . . Largest Inventory Capacity 5 | 5 5 5 5 5 5 5 Average Capacity 5 | 5 5 5 5 5 5 5 Most Carried 2 | 1 1 1 1 2 1 1 Average Carried 1 | 1 1 1 1 1 1 1 Final Capacity 5 | 5 5 5 5 5 5 5 Final Carried 1 | 1 1 1 1 1 1 1 Class Distribution -------------------- 100% | Mutant Dominant Class ---------------- Mutant | -10/Materials Mutant | -10/Mines Mutant | -10/Subcaves Mutant | -8/Materials Mutant | -7/Factory Mutant | -6/Factory Resources | -11 -10 -10 -10 -8 -7 -6 ----------- Run | Yrd Mat Min Sub Mat Fac Fac Matter Collected 39 | 34 . . 5 . . . Remotely . | . . . . . . . Salvage Created 4 | 4 . . . . . . Parts . | . . . . . . . Haulers Intercepted . | . . . . . . . Recyclers Shooed 1 | . 1 . . . . . Parts Field Recycled . | . . . . . . . Retrieved Matter . | . . . . . . . Parts Self-Destructed . | . . . . . . . Prevented . | . . . . . . . Parts Restored . | . . . . . . . Kills | -11 -10 -10 -10 -8 -7 -6 ------- Run | Yrd Mat Min Sub Mat Fac Fac Combat Hostiles Destroyed . | . . . . . . . Classes Destroyed 1 | 1 . . . . . . Tunneler 1 | 1 . . . . . . Best Kill Streak 1 | 1 . . . . . . Combat Bots Only . | . . . . . . . Max Kills in Single Turn 1 | 1 . . . . . . Gunslinging . | . . . . . . . Exploded . | . . . . . . . Melee . | . . . . . . . Uniques/NPCs Destroyed . | . . . . . . . Combat | -11 -10 -10 -10 -8 -7 -6 -------- Run | Yrd Mat Min Sub Mat Fac Fac Hostile Shots Fired 174 | . . . 29 48 . 97 Missed 70 | . . . 6 13 . 51 Hits 104 | . . . 23 35 . 46 Projectile 104 | . . . 23 35 . 46 Critical Strikes 1 | . . . . 1 . . Damage Taken 1735 | . 112 . 500 512 . 611 Core 1046 | . . . 196 328 . 522 Absorbed by Shields . | . . . . . . . Core Remaining (%) 65 | 100 . . 21 40 100 . Volleys Fired 19 | 5 9 . 2 3 . . Largest 2 | 1 2 . 1 1 . . Hottest 63 | 40 60 . 20 63 . . Shots Fired 27 | 5 17 . 2 3 . . Gun 27 | 5 17 . 2 3 . . Cannon . | . . . . . . . Launcher . | . . . . . . . Special . | . . . . . . . Kinetic 14 | 2 8 . 2 2 . . Thermal 1 | . . . . 1 . . Explosive . | . . . . . . . Electromagnetic 12 | 3 9 . . . . . Robot Hit Streak 2 | 1 . . . 2 . . Robot Miss Streak 2 | 1 . . . 2 . . Penetration Max . | . . . . . . . Secondary Targets . | . . . . . . . Shots Hit Robots 3 | 1 . . . 2 . . Core Hits 4 | 1 1 . . 1 . 1 Critical Kills . | . . . . . . . Critical Parts Destroyed . | . . . . . . . Critical Strikes . | . . . . . . . Melee Attacks . | . . . . . . . Impact . | . . . . . . . Slashing . | . . . . . . . Piercing . | . . . . . . . Sneak Attacks . | . . . . . . . Combat Hostiles . | . . . . . . . Follow-up Attacks . | . . . . . . . Damage Inflicted 80 | 7 5 . 6 40 . 22 Guns 41 | 6 . . . 35 . . Cannons . | . . . . . . . Explosions . | . . . . . . . Melee . | . . . . . . . Ramming 39 | 1 5 . 6 5 . 22 Kinetic 24 | 6 . . . 18 . . Thermal 17 | . . . . 17 . . Explosive . | . . . . . . . Electromagnetic . | . . . . . . . Impact . | . . . . . . . Slashing . | . . . . . . . Piercing . | . . . . . . . Highest Corruption 1 | . . . . . . 1 Average Corruption 1 | . . . . . . 1 Corruption Purged . | . . . . . . . Corruption Blocked . | . . . . . . . Overload Shots . | . . . . . . . Overflow Damage . | . . . . . . . Projectiles . | . . . . . . . Explosions . | . . . . . . . Melee . | . . . . . . . Knockbacks . | . . . . . . . Impact . | . . . . . . . Kinetic . | . . . . . . . Secondary . | . . . . . . . Self-Inflicted Damage 129 | . 112 . 6 2 . 9 Shots 1 | . 1 . . . . . Rammed 10 | . 1 . . 1 . 8 Targets Rammed 11 | 1 1 . . 1 . 8 Kicked . | . . . . . . . Crushed 1 | 1 . . . . . . Highest Temperature 20 | . 20 . . 3 . . Average Temperature 8 | . 8 . . 3 . . Received Heat Transfer 321 | . . . 66 171 . 84 Siege Activations . | . . . . . . . Martial Activations . | . . . . . . . Shielding Activations . | . . . . . . . Robots Disrupted . | . . . . . . . Combat Hostiles . | . . . . . . . Robots Corrupted . | . . . . . . . Combat Hostiles . | . . . . . . . Parts Fried . | . . . . . . . Impact Corruptions . | . . . . . . . Robots Melted . | . . . . . . . Combat Hostiles . | . . . . . . . Parts Melted . | . . . . . . . Heat Transferred 37 | . . . . 37 . . Parts Sabotaged . | . . . . . . . Parts Stolen . | . . . . . . . Parts Stripped . | . . . . . . . Power Chain Reactions . | . . . . . . . Alert | -11 -10 -10 -10 -8 -7 -6 ------- Run | Yrd Mat Min Sub Mat Fac Fac Maximum Alert Level . | . . . . . . . Low Security (%) 100 | 100 100 100 . 100 100 100 Level 1 . | . . . . . . . Level 2 . | . . . . . . . Level 3 . | . . . . . . . Level 4 . | . . . . . . . Level 5 . | . . . . . . . High Security . | . . . . . . . Max Security . | . . . . . . . Peak Influence 85 | 5 40 3 . 30 . 85 Initial 3 | . 3 3 . . . . Average 16 | . 17 . . 10 . 47 Influence Increases 195 | 5 40 . . 45 . 105 Destroy 0b10 Robot/NC 5 | 5 . . . . . . Disable Machine 15 | . 15 . . . . . Destroy Structure 25 | . 25 . . . . . Lose Combat Pursuer 150 | . . . . 45 . 105 Influence Decreases 150 | . 35 10 . 45 . 60 Entered New Map 9 | . 2 7 . . . . Time Decay 106 | . 33 3 . 30 . 40 Lost Part 35 | . . . . 15 . 20 Squads Dispatched 2 | . . . . 1 . 1 Investigation 2 | . . . . 1 . 1 Extermination . | . . . . . . . Reinforcement . | . . . . . . . Assault . | . . . . . . . Garrison . | . . . . . . . Intercept . | . . . . . . . Searches Triggered . | . . . . . . . Construction Impeded . | . . . . . . . Haulers Reinforced . | . . . . . . . Active Scanning Responses . | . . . . . . . Cargo Convoy Interrupts . | . . . . . . . Stealth | -11 -10 -10 -10 -8 -7 -6 --------- Run | Yrd Mat Min Sub Mat Fac Fac Distress Signals 1 | . . . . . . 1 Communications Jammed . | . . . . . . . Distress Signals . | . . . . . . . Times Spotted 28 | . . . 3 4 . 21 Peak Tracking Total 9 | . . . 3 4 . 9 Tactical Retreats 2 | . . . . 1 . 1 Traps | -11 -10 -10 -10 -8 -7 -6 ------- Run | Yrd Mat Min Sub Mat Fac Fac Traps Triggered 1 | . . . . 1 . . Indirectly . | . . . . . . . Trap Hack Attempts . | . . . . . . . Triggered . | . . . . . . . Disarmed . | . . . . . . . Reprogrammed . | . . . . . . . Reused . | . . . . . . . Traps Extracted . | . . . . . . . Installed . | . . . . . . . Triggered . | . . . . . . . Machines | -11 -10 -10 -10 -8 -7 -6 ---------- Run | Yrd Mat Min Sub Mat Fac Fac Machines Disabled 1 | . 1 . . . . . Max in Single Turn 1 | . 1 . . . . . Machines Repaired . | . . . . . . . Machines Dismantled . | . . . . . . . Machines Sabotaged . | . . . . . . . Overloaded Fab Kills . | . . . . . . . Hacking | -11 -10 -10 -10 -8 -7 -6 --------- Run | Yrd Mat Min Sub Mat Fac Fac Machines Accessed 1 | . . . . . . 1 Terminals . | . . . . . . . Fabricators . | . . . . . . . Repair Stations . | . . . . . . . Recycling Units . | . . . . . . . Scanalyzers . | . . . . . . . Garrison Access 1 | . . . . . . 1 Total Hacks 3 | . . . . . . 3 Successful . | . . . . . . . Failed 3 | . . . . . . 3 Catastrophic 3 | . . . . . . 3 Database Lockouts . | . . . . . . . Manual . | . . . . . . . Terminals . | . . . . . . . Fabricators . | . . . . . . . Repair Stations . | . . . . . . . Recycling Units . | . . . . . . . Scanalyzers . | . . . . . . . Garrison Access 3 | . . . . . . 3 Terminal Hacks . | . . . . . . . Fabricator Hacks . | . . . . . . . Repair Station Hacks . | . . . . . . . Recycling Unit Hacks . | . . . . . . . Scanalyzer . | . . . . . . . Garrison Access Hacks . | . . . . . . . Unauthorized Hacks . | . . . . . . . Terminals . | . . . . . . . Fabricators . | . . . . . . . Repair Stations . | . . . . . . . Recycling Units . | . . . . . . . Scanalyzers . | . . . . . . . Garrison Access . | . . . . . . . Data Cores Recovered . | . . . . . . . Used . | . . . . . . . Hacking Detections 1 | . . . . . . 1 Full Trace Events 1 | . . . . . . 1 Feedback Events . | . . . . . . . Feedback Blocked . | . . . . . . . Robot Schematics Acquired . | . . . . . . . Robots Built . | . . . . . . . Authchips . | . . . . . . . Time . | . . . . . . . Total Robot Build Rating . | . . . . . . . Part Schematics Acquired . | . . . . . . . Parts Built . | . . . . . . . Authchips . | . . . . . . . Time . | . . . . . . . Total Part Build Rating . | . . . . . . . Part Studies Acquired . | . . . . . . . Parts Repaired . | . . . . . . . Time . | . . . . . . . Parts Recycled . | . . . . . . . Recycled Matter . | . . . . . . . Retrieved Matter . | . . . . . . . Retrieved Components . | . . . . . . . Parts Scanalyzed . | . . . . . . . Part Schematics Acquired . | . . . . . . . Parts Damaged . | . . . . . . . Bothacking | -11 -10 -10 -10 -8 -7 -6 ------------ Run | Yrd Mat Min Sub Mat Fac Fac Used RIF Installer . | . . . . . . . Robots Hacked . | . . . . . . . Non-combat . | . . . . . . . Combat . | . . . . . . . Robot Hacks Applied . | . . . . . . . Relay Couplers Released . | . . . . . . . Fabnet Peak Effective % . | . . . . . . . Robots Rewired . | . . . . . . . Allies Hacked . | . . . . . . . Hacks Repelled . | . . . . . . . Allies | -11 -10 -10 -10 -8 -7 -6 -------- Run | Yrd Mat Min Sub Mat Fac Fac Total Allies . | . . . . . . . Largest Group . | . . . . . . . Highest-Rated Group . | . . . . . . . Highest-Rated Ally . | . . . . . . . Total Orders . | . . . . . . . Ally Attacks . | . . . . . . . Total Damage . | . . . . . . . Kills . | . . . . . . . Allies Corrupted . | . . . . . . . Allies Melted . | . . . . . . . Intel | -11 -10 -10 -10 -8 -7 -6 ------- Run | Yrd Mat Min Sub Mat Fac Fac Active Infowar (turns) . | . . . . . . . Robot Analysis Total . | . . . . . . . Derelict Logs Recovered 1 | . . . 1 . . . Drone Launches . | . . . . . . . Drone Recoveries . | . . . . . . . Exploration | -11 -10 -10 -10 -8 -7 -6 ------------- Run | Yrd Mat Min Sub Mat Fac Fac Turns Passed 612 | 67 92 130 100 99 7 117 Spaces Moved 504 | 35 42 17 119 81 14 196 Core 386 | 5 . . 90 81 14 196 Treads 118 | 30 42 17 29 . . . Legs . | . . . . . . . Wheels . | . . . . . . . Hover . | . . . . . . . Flight . | . . . . . . . Fastest Speed 50 | 50 160 160 50 50 50 50 Average Speed 77 | 144 160 160 76 61 50 50 Slowest Speed 160 | 160 160 160 160 100 50 50 Overloaded Moves . | . . . . . . . Propulsion Burnouts . | . . . . . . . Robots Hopped . | . . . . . . . Potential Cave-ins . | . . . . . . . Cave-ins Triggered . | . . . . . . . Exploration Rate (%) 10 | 3 14 7 23 14 1 8 Regions Visited 6 Branch Regions 2 Pre-discovered Areas . | . . . . . . . Known Exits Taken 1 | . . . . 1 . . Unknown Exits Taken 5 | 1 1 1 1 . 1 . Scrap Searched . | . . . . . . . Spaces Dug . | . . . . . . . Terrain Destroyed 33 | . 33 . . . . . Melee . | . . . . . . . Projectile . | . . . . . . . AOE 33 | . 33 . . . . . Terrain Rammed 1 | . . . 1 . . . Walls Destroyed . | . . . . . . . Machines Disabled . | . . . . . . . Actions | -11 -10 -10 -10 -8 -7 -6 --------- Run | Yrd Mat Min Sub Mat Fac Fac Total 694 | 44 51 120 125 127 13 214 Wait 157 | . . 104 4 40 . 9 Move 499 | 34 41 16 118 81 13 196 Hop . | . . . . . . . Pick Up 1 | . . . . 1 . . Fast Attach 6 | 4 . . . 1 . 1 Attach 1 | . . . . 1 . . Detach . | . . . . . . . Swap . | . . . . . . . Drop . | . . . . . . . Fire 19 | 5 9 . 2 3 . . Melee . | . . . . . . . Ram 9 | . . . 1 . . 8 Kick . | . . . . . . . Crush 2 | 1 1 . . . . . Escape Stasis . | . . . . . . . Rewire . | . . . . . . . Trap . | . . . . . . . Miscellaneous . | . . . . . . . Route ------- -11/Scrapyard -10/Materials -10/Mines -10/Subcaves -8/Materials (discovered 2 exits: *Fac x2) -7/Factory -6/Factory History --------- Turn | Location | Event 3 | -11/Scrapyard | Discovered new exit (range 16) 68 | -11/Scrapyard | Entered Materials 147 | -10/Materials | Discovered new exit (range 9) 160 | -10/Materials | Entered Mines 198 | -10/Mines | Discovered new exit (range 5) 261 | -10/Mines | Met a Derelict bent on vengeance 290 | -10/Mines | Entered Subcaves 291 | -10/Subcaves | Approached by a straggling Scientist 316 | -10/Subcaves | Build established: Mutant 326 | -10/Subcaves | Learned location of 1 exit from Materials 337 | -10/Subcaves | Core integrity fell below 50% 371 | -10/Subcaves | Lost 3 parts (2n1w) 384 | -10/Subcaves | Discovered new exit (range 14) 390 | -10/Subcaves | Entered Materials 390 | -8/Materials | Evolved 4 slots: Propulsion x2, Utility x2 391 | -8/Materials | Identified exit to Factory 467 | -8/Materials | Core integrity fell below 50% 476 | -8/Materials | Discovered exit to Factory (range 16) 489 | -8/Materials | Entered Factory 489 | -7/Factory | Evolved 2 slots: Weapon x2 489 | -7/Factory | Discovered new exit (range 14) 496 | -7/Factory | Entered another Factory area 496 | -6/Factory | Evolved 2 slots: Propulsion x2 609 | -6/Factory | Core integrity fell below 50% 613 | -6/Factory | Self-destructed Last Messages --------------- 00549_ Chain reaction triggered in Corrupted Lgt. Nuclear Core. 00549_ S-27 Virus destroyed. 00549_ Door malfunctions. 00557_ U-05 Engineer lays Concrete. 00563_ Connecting with Garrison Access... 00563_ Current location identified: Factory 00563_ ALERT: Suspicious activity at Garrison Access F001. Dispatching Investigation squad. 00581_ Acquired Imp. Melee Analysis Suite. 00584_ Slammed into U-05 Engineer. 00599_ K-01 Serf cleans the Subcomponent Replicator. 00600_ Slammed into K-01 Serf. 00600_ Destabilizing: System interference. 00600_ Imp. Melee Analysis Suite temporarily disabled. 00609_ Slammed into S-27 Virus. 00610_ T-07 Excavator is excavating. 00610_ Imp. Melee Analysis Suite destroyed. Map ----- +----------------------------------------------------+ | ?????????????????????????# # # + | | ?????????????????????????# """ """ + # """ ## | | ?????????????????????????# """ """ # #! """ ## | | ?????????????????????????# """ """ / # """ ## | | ?????????????????????????# "" "" ### # ## | | ?????????????????????????# "" "" #?# ########### | | ?????????????????????????# #?# + | | ?????????????????????????#+#########?############# | | ?????????????????????????# #?????????????????????# | | ?????????????????????????# #?????????????????????# | | ?????????????????????????# #?????????????????????# | | ?????????????????????????# #?????????????????????? | | ?????????????????????????# #?????????????????????? | | ?????????????????????????# #?????????????????????? | | ?????????????????????????# #?????????????????????? | | ?????????????????????????# #?????????????????????? | | ?????????????????????????# #?????????????????????? | | ???????????????????????### ###???????????????????? | | ?????????? ##+####### s ###?????????????????? | | ?????????? s # #?????????????????? | | ???????????" Y t #?????????????????? | | ?????????? ! ! ###?????????????????? | | ?????????? #######+## #???????????????????? | | ???????????????????????## s##???????????????????? | | ????????????????????????# ######???????????????? | | ????????????????????????#@ #??????????? | | ????????????????????????# g +??????????? | | ????????????????????????# b g#??????????? | | ????????????????????????## ###+###### #??????????? | | ?????????????????????????? #?????????????????????? | | ??????????????????????????u/?????????????????????? | | ?????????????????????????? #?????????????????????? | | ??????????????????????????A#?????????????????????? | | ?????????????????????????? #?????????????????????? | | ?????????????????????????? #?????????????????????? | | ?????????????????????????? #?????????????????????? | | ???????????????????????????#?????????????????????? | | ?????????????????????????????????????????????????? | | ?????????????????????????????????????????????????? | | ?????????????????????????????????????????????????? | | ?????????????????????????????????????????????????? | | ?????????????????????????????????????????????????? | | ?????????????????????????????????????????????????? | | ?????????????????????????????????????????????????? | | ?????????????????????????????????????????????????? | | ?????????????????????????????????????????????????? | | ?????????????????????????????????????????????????? | | ?????????????????????????????????????????????????? | | ?????????????????????????????????????????????????? | | ?????????????????????????????????????????????????? | +----------------------------------------------------+ Best States ------------- Heat Dissipation 37 Energy Generation 5 Energy Capacity 100 Matter Stores 114 Matter Capacity 300 Sight Range 16 Terrain Scan Density 10 Evasion (%) 50 Melee Accuracy 6 Recoil Reduction 2 Item Schematics ----------------- None Robot Schematics ------------------ None Fabricated ------------ Nothing Repaired ---------- Nothing Studied --------- None Alien Tech Used ----------------- None Achievements -------------- None Challenges ------------ None Game ------ Seed LinkedMasterDoomcannon Manual? 0 Play Time 00:05:23 Cumulative 287.7 hours Start 2026.01.04 @ 01:16:21 End 2026.01.04 @ 02:04:34 Sessions 9 Manual Loads 0 Difficulty Rogue Special Mode None Game No. 192 Rogue 192 Adventurer 0 Explorer 0 Win Type - Total 10 Types 7/0/1/1/0/0/0/1/0/0 Lore% 91 Gallery% 79 Achievement% 64 Wizard Run 0 Options --------- Layout 1 ASCII 0 Keyboard 0 Movement Mouse Keybinds 0 Fullscreen 2 Font 32/SmallcapsGlow Map View 50x35 Zoom Use 0% Tactical HUD 1 Map Filters NONE Filters NONE Steam 1 RUN: 3f055ddd-be7b-4652-aff8-e79826c1d6d0